fUST/lending_fUST_20241229
["ID","MTS","AMOUNT","RATE_DAILY","PERIOD"]
[347042124,1735482109211,-500.0,9.24e-05,2]
[347042125,1735482109233,-500.0,9.24e-05,2]
[347042126,1735482109255,-502.84260476,9.24e-05,2]
[347042127,1735482109278,-500.0,9.24e-05,2]
[347042128,1735482109305,-500.0,9.24e-05,2]
[347042129,1735482109328,-500.0,9.24e-05,2]
[347042130,1735482109432,-524.61157467,9.24e-05,2]
[347042131,1735482109457,-500.0,9.24e-05,2]
[347042132,1735482109483,-500.0,9.24e-05,2]
[347042133,1735482109507,-500.0,9.24e-05,2]
[347042134,1735482109532,-500.0,9.24e-05,2]
[347042135,1735482109561,-502.8656704,9.24e-05,2]
[347042136,1735482109585,-500.0,9.24e-05,2]
[347042137,1735482109608,-313.09523466,9.24e-05,2]
[347042138,1735482109631,-510.96916891,9.24e-05,2]
[347042139,1735482109657,-500.0,9.24e-05,2]
[347042140,1735482109681,-500.0,9.24e-05,2]
[347042141,1735482109703,-513.7883702,9.24e-05,2]
[347042142,1735482109727,-500.0,9.24e-05,2]
[347042143,1735482109751,-500.0,9.24e-05,2]
[347042144,1735482109774,-500.0,9.24e-05,2]
[347042145,1735482109797,-518.31767556,9.24e-05,2]
[347042146,1735482109820,-500.0,9.24e-05,2]
[347042147,1735482109841,-500.0,9.24e-05,2]
[347042148,1735482109863,-500.0,9.24e-05,2]
[347042149,1735482109885,-500.0,9.24e-05,2]
[347042150,1735482109907,-234.46264604,9.24e-05,2]
[347042151,1735482109928,-503.00266662,9.24e-05,2]
[347042152,1735482109950,-500.0,9.24e-05,2]
[347042153,1735482109972,-502.19180565,9.24e-05,2]
[347042154,1735482109994,-480.73133406,9.24e-05,2]
[347042155,1735482110016,-501.42343876,9.24e-05,2]
[347042156,1735482110039,-500.0,9.24e-05,2]
[347042157,1735482110059,-501.97236093,9.24e-05,2]
[347042158,1735482110081,-500.0,9.24e-05,2]
[347042159,1735482110104,-500.0,9.24e-05,2]
[347042160,1735482110127,-500.0,9.24e-05,2]
[347042161,1735482110149,-500.0,9.24e-05,2]
[347042162,1735482110173,-157.05954367,9.24e-05,2]
[347042163,1735482110196,-502.89907346,9.24e-05,2]
[347042164,1735482110220,-553.85,9.24e-05,2]
[347042165,1735482110242,-500.0,9.24e-05,2]
[347042166,1735482110264,-500.0,9.24e-05,2]
[347042167,1735482110288,-502.66409176,9.24e-05,2]
[347042168,1735482110311,-500.0,9.24e-05,2]
[347042169,1735482110333,-500.0,9.24e-05,2]
[347042170,1735482110355,-502.17614677,9.24e-05,2]
[347042171,1735482110377,-500.0,9.24e-05,2]
[347042172,1735482110400,-502.73923988,9.24e-05,2]
[347042173,1735482110422,-501.79548777,9.24e-05,2]
[347042174,1735482110446,-500.0,9.24e-05,2]
[347042175,1735482110469,-500.0,9.24e-05,2]
[347042176,1735482110491,-500.0,9.24e-05,2]
[347042177,1735482110512,-502.733197,9.24e-05,2]
[347042178,1735482110534,-500.0,9.24e-05,2]
[347042179,1735482110556,-500.0,9.24e-05,2]
[347042180,1735482110577,-500.0,9.24e-05,2]
[347042181,1735482110598,-500.0,9.24e-05,2]
[347042182,1735482110619,-500.0,9.24e-05,2]
[347042183,1735482110640,-505.36973935,9.24e-05,2]
[347042184,1735482110665,-500.0,9.24e-05,2]
[347042185,1735482110685,-500.0,9.24e-05,2]
[347042186,1735482110708,-500.0,9.24e-05,2]
[347042187,1735482110730,-503.17791094,9.24e-05,2]
[347042188,1735482110751,-500.0,9.24e-05,2]
[347042189,1735482110773,-500.0,9.24e-05,2]
[347042190,1735482110794,-514.64814765,9.24e-05,2]
[347042191,1735482110817,-502.51035047,9.24e-05,2]
[347042192,1735482110839,-500.0,9.24e-05,2]
[347042193,1735482110860,-500.0,9.24e-05,2]
[347042194,1735482110881,-503.25271742,9.24e-05,2]
[347042195,1735482110902,-266.75211091,9.24e-05,2]
[347042196,1735482110922,-503.49165413,9.24e-05,2]
[347042197,1735482110943,-500.0,9.24e-05,2]
[347042198,1735482110964,-620.980716,9.24e-05,2]
[347042199,1735482110985,-540.90178331,9.24e-05,2]
[347042200,1735482111006,-502.04092753,9.24e-05,2]
[347042201,1735482111027,-500.0,9.24e-05,2]
[347042202,1735482111050,-500.84069531,9.24e-05,2]
[347042203,1735482111143,-500.0,9.24e-05,2]
[347042204,1735482111166,-501.99185535,9.24e-05,2]
[347042205,1735482111188,-504.29554481,9.24e-05,2]
[347042206,1735482111211,-500.0,9.24e-05,2]
[347042207,1735482111234,-500.0,9.24e-05,2]
[347042208,1735482111256,-505.56475649,9.24e-05,2]
[347042209,1735482111278,-500.0,9.24e-05,2]
[347042210,1735482111301,-502.4643162,9.24e-05,2]
[347042211,1735482111322,-500.0,9.24e-05,2]
[347042212,1735482111344,-500.0,9.24e-05,2]
[347042213,1735482111368,-500.0,9.24e-05,2]
[347042214,1735482111389,-500.0,9.24e-05,2]
[347042215,1735482111412,-500.0,9.24e-05,2]
[347042216,1735482111436,-500.0,9.24e-05,2]
[347042217,1735482111459,-500.0,9.24e-05,2]
[347042218,1735482111481,-500.0,9.24e-05,2]
[347042219,1735482111506,-500.0,9.24e-05,2]
[347042220,1735482111529,-500.0,9.24e-05,2]
[347042221,1735482111553,-500.0,9.24e-05,2]
[347042222,1735482111576,-500.0,9.24e-05,2]
[347042223,1735482111597,-500.0,9.24e-05,2]
[347042224,1735482111621,-500.0,9.24e-05,2]
[347042225,1735482111642,-500.0,9.24e-05,2]
[347042226,1735482111671,-500.0,9.24e-05,2]
[347042227,1735482111696,-281.24926534,9.24e-05,2]
[347042228,1735482111721,-2224.43,9.24e-05,2]
[347042229,1735482111744,-431.07150167,9.24e-05,2]
[347042230,1735482170276,-318.39783417,9.053e-05,2]
[347042231,1735482170299,-500.0,9.144e-05,2]
[347042232,1735482170324,-500.0,9.231e-05,2]
[347042233,1735482170346,-500.0,9.231e-05,2]
[347042234,1735482170370,-808.07,9.231e-05,2]
[347042235,1735482170393,-500.0,9.231e-05,2]
[347042236,1735482170415,-500.0,9.231e-05,2]
[347042237,1735482170438,-500.0,9.234e-05,2]
[347042238,1735482170462,-500.0,9.234e-05,2]
[347042239,1735482170484,-264.18176743,9.234e-05,2]
[347042240,1735482170508,-844.14,9.234e-05,2]
[347042241,1735482170531,-500.0,9.234e-05,2]
[347042242,1735482170553,-500.0,9.234e-05,2]
[347042243,1735482170575,-500.0,9.234e-05,2]
[347042244,1735482170599,-500.0,9.234e-05,2]
[347042245,1735482170619,-500.0,9.234e-05,2]
[347042246,1735482170643,-500.0,9.234e-05,2]
[347042247,1735482170665,-500.0,9.234e-05,2]
[347042248,1735482170686,-500.0,9.234e-05,2]
[347042249,1735482170709,-500.0,9.234e-05,2]
[347042250,1735482170731,-300.0,9.235e-05,2]
[347042251,1735482170756,-500.0,9.236e-05,2]
[347042252,1735482170778,-500.0,9.236e-05,2]
[347042253,1735482170800,-500.0,9.236e-05,2]
[347042254,1735482170823,-501.10789209,9.236e-05,2]
[347042255,1735482170916,-500.0,9.236e-05,2]
[347042256,1735482170940,-683.62,9.236e-05,2]
[347042257,1735482170963,-500.0,9.236e-05,2]
[347042258,1735482170985,-500.0,9.236e-05,2]
[347042259,1735482171006,-500.0,9.236e-05,2]
[347042260,1735482171029,-840.71,9.236e-05,2]
[347042261,1735482171050,-500.0,9.236e-05,2]
[347042262,1735482171072,-500.0,9.236e-05,2]
[347042263,1735482171094,-500.0,9.236e-05,2]
[347042264,1735482171115,-500.0,9.236e-05,2]
[347042265,1735482171138,-602.61,9.236e-05,2]
[347042266,1735482171160,-500.0,9.236e-05,2]
[347042267,1735482171184,-500.0,9.236e-05,2]
[347042268,1735482171205,-162.9,9.239e-05,2]
[347042269,1735482171228,-500.0,9.239e-05,2]
[347042270,1735482171251,-500.0,9.239e-05,2]
[347042271,1735482171273,-490.45409049,9.239e-05,2]
[347042272,1735482171297,-359.4710465,9.239e-05,2]
[347042273,1735482171320,-500.0,9.239e-05,2]
[347042274,1735482171343,-500.0,9.239e-05,2]
[347042275,1735482171367,-500.0,9.239e-05,2]
[347042276,1735482171391,-500.0,9.239e-05,2]
[347042277,1735482171415,-68.92849833,9.24e-05,2]
[347042278,1735482171439,-500.0,9.24e-05,2]
[347042279,1735482171461,-181.75132204,9.24e-05,2]
[347042280,1735482171482,-503.00481932,9.24e-05,2]
[347042281,1735482171504,-500.0,9.24e-05,2]
[347042282,1735482171538,-500.0,9.24e-05,2]
[347042283,1735482171561,-500.0,9.24e-05,2]
[347042284,1735482171583,-500.0,9.24e-05,2]
[347042285,1735482171608,-500.0,9.24e-05,2]
[347042286,1735482171631,-500.0,9.24e-05,2]
[347042287,1735482171654,-500.0,9.24e-05,2]
[347042288,1735482171676,-500.0,9.24e-05,2]
[347042289,1735482171699,-500.0,9.24e-05,2]
[347042290,1735482171721,-500.0,9.24e-05,2]
[347042291,1735482171745,-500.0,9.24e-05,2]
[347042292,1735482171771,-606.43,9.24e-05,2]
[347042293,1735482171794,-500.0,9.24e-05,2]
[347042294,1735482171817,-904.4,9.24e-05,2]
[347042295,1735482171842,-500.0,9.24e-05,2]
[347042296,1735482171865,-500.0,9.24e-05,2]
[347042297,1735482171887,-501.3379503,9.24e-05,2]
[347042298,1735482171912,-500.0,9.24e-05,2]
[347042299,1735482171934,-500.0,9.241e-05,2]
[347042300,1735482171957,-500.0,9.241e-05,2]
[347042301,1735482171981,-500.0,9.241e-05,2]
[347042302,1735482172003,-500.0,9.241e-05,2]
[347042303,1735482172025,-500.0,9.241e-05,2]
[347042304,1735482172046,-500.0,9.241e-05,2]
[347042305,1735482172069,-500.0,9.241e-05,2]
[347042306,1735482172092,-500.0,9.241e-05,2]
[347042307,1735482172115,-500.0,9.241e-05,2]
[347042308,1735482172226,-500.0,9.241e-05,2]
[347042309,1735482172250,-500.0,9.241e-05,2]
[347042310,1735482172273,-500.0,9.241e-05,2]
[347042311,1735482172295,-224.02691309,9.241e-05,2]
[347042312,1735482172318,-500.0,9.241e-05,2]
[347042313,1735482172340,-500.0,9.241e-05,2]
[347042314,1735482172363,-500.0,9.241e-05,2]
[347042315,1735482172386,-500.0,9.241e-05,2]
[347042316,1735482172409,-500.0,9.241e-05,2]
[347042317,1735482172432,-500.0,9.241e-05,2]
[347042318,1735482172456,-500.0,9.241e-05,2]
[347042319,1735482172479,-500.0,9.241e-05,2]
[347042320,1735482172503,-500.0,9.241e-05,2]
[347042321,1735482172526,-639.6205156,9.241e-05,2]
[347042322,1735482172549,-500.0,9.241e-05,2]
[347042323,1735482172572,-500.0,9.241e-05,2]
[347042324,1735482172597,-500.0,9.241e-05,2]
[347042325,1735482172619,-437.31388702,9.241e-05,2]
[347042326,1735482172642,-500.0,9.241e-05,2]
[347042327,1735482172666,-500.0,9.241e-05,2]
[347042328,1735482172688,-500.0,9.241e-05,2]
[347042329,1735482172712,-500.0,9.241e-05,2]
[347042330,1735482172738,-500.0,9.241e-05,2]
[347042331,1735482172769,-1486.74,9.241e-05,2]
[347042332,1735482172792,-500.0,9.242e-05,2]
[347042333,1735482172816,-500.0,9.242e-05,2]
[347042334,1735482172857,-193.28687725,9.242e-05,2]
[347042335,1735482172895,-500.0,9.242e-05,2]
[347042336,1735482172935,-500.0,9.242e-05,2]
[347042337,1735482172971,-500.0,9.242e-05,2]
[347042338,1735482173005,-500.0,9.242e-05,2]
[347042339,1735482173040,-500.0,9.242e-05,2]
[347042340,1735482173079,-500.0,9.242e-05,2]
[347042341,1735482173113,-500.0,9.242e-05,2]
[347042342,1735482173147,-500.0,9.242e-05,2]
[347042343,1735482173178,-500.0,9.242e-05,2]
[347042344,1735482173210,-500.0,9.242e-05,2]
[347042345,1735482173247,-500.0,9.242e-05,2]
[347042346,1735482173281,-500.0,9.242e-05,2]
[347042347,1735482173314,-500.0,9.243e-05,2]
[347042348,1735482173345,-500.0,9.243e-05,2]
[347042349,1735482173381,-3439.47,9.243e-05,2]
[347042350,1735482173414,-188.87,9.243e-05,2]
[347042351,1735482173446,-250.0,9.428e-05,2]
[347042352,1735482173477,-280.16395124,9.504e-05,2]
[347042353,1735482173509,-500.0,9.505e-05,2]
[347042354,1735482173535,-500.0,9.505e-05,2]
[347042355,1735482173557,-500.0,9.505e-05,2]
[347042356,1735482173578,-500.0,9.505e-05,2]
[347042357,1735482173600,-279.75515246,9.505e-05,2]
[347042358,1735482173743,-500.0,9.505e-05,2]
[347042359,1735482173776,-500.0,9.505e-05,2]
[347042360,1735482173799,-500.0,9.505e-05,2]
[347042361,1735482173822,-510.65546127,9.505e-05,2]
[347042362,1735482173846,-500.0,9.505e-05,2]
[347042363,1735482173870,-500.0,9.505e-05,2]
[347042364,1735482173893,-500.0,9.505e-05,2]
[347042365,1735482173917,-808.07,9.505e-05,2]
[347042366,1735482173941,-503.0038404,9.508e-05,2]
[347042367,1735482173963,-500.0,9.508e-05,2]
[347042368,1735482173986,-500.0,9.508e-05,2]
[347042369,1735482174008,-500.0,9.508e-05,2]
[347042370,1735482174030,-578.14861766,9.508e-05,2]
[347042371,1735482174053,-500.0,9.508e-05,2]
[347042372,1735482174074,-502.13062488,9.508e-05,2]
[347042373,1735482174098,-500.0,9.508e-05,2]
[347042374,1735482174119,-500.0,9.508e-05,2]
[347042375,1735482174141,-500.0,9.508e-05,2]
[347042376,1735482174164,-500.0,9.508e-05,2]
[347042377,1735482174186,-500.0,9.508e-05,2]
[347042378,1735482174209,-505.28460639,9.508e-05,2]
[347042379,1735482174231,-504.34988501,9.508e-05,2]
[347042380,1735482174254,-500.0,9.508e-05,2]
[347042381,1735482174277,-500.0,9.508e-05,2]
[347042382,1735482174300,-500.0,9.508e-05,2]
[347042383,1735482174323,-500.0,9.508e-05,2]
[347042384,1735482174346,-301.04072164,9.508e-05,2]
[347042385,1735482174370,-500.0,9.508e-05,2]
[347042386,1735482174393,-601.68240809,9.508e-05,2]
[347042387,1735482174416,-500.0,9.508e-05,2]
[347042388,1735482174441,-406.78626909,9.508e-05,2]
[347042389,1735482174464,-500.0,9.508e-05,2]
[347042390,1735482174487,-500.0,9.508e-05,2]
[347042391,1735482174510,-500.0,9.508e-05,2]
[347042392,1735482174533,-505.1851468,9.508e-05,2]
[347042393,1735482174558,-500.0,9.508e-05,2]
[347042394,1735482174581,-500.0,9.508e-05,2]
[347042395,1735482174605,-500.0,9.508e-05,2]
[347042396,1735482174628,-500.0,9.508e-05,2]
[347042397,1735482174651,-500.0,9.508e-05,2]
[347042398,1735482174674,-500.0,9.508e-05,2]
[347042399,1735482174697,-507.59360303,9.508e-05,2]
[347042400,1735482174720,-500.0,9.508e-05,2]
[347042401,1735482174743,-500.0,9.508e-05,2]
[347042402,1735482174768,-1543.61,9.508e-05,2]
[347042403,1735482174791,-500.0,9.508e-05,2]
[347042404,1735482174813,-500.0,9.508e-05,2]
[347042405,1735482174837,-500.0,9.508e-05,2]
[347042406,1735482174862,-500.0,9.508e-05,2]
[347042407,1735482174885,-844.14,9.508e-05,2]
[347042408,1735482174908,-505.53710305,9.508e-05,2]
[347042409,1735482174932,-500.0,9.508e-05,2]
[347042410,1735482174954,-500.0,9.508e-05,2]
[347042411,1735482174976,-500.0,9.508e-05,2]
[347042412,1735482174998,-500.0,9.508e-05,2]
[347042413,1735482175021,-500.0,9.508e-05,2]
[347042414,1735482175043,-500.0,9.508e-05,2]
[347042415,1735482175066,-500.0,9.508e-05,2]
[347042416,1735482175088,-500.0,9.51e-05,2]
[347042417,1735482175110,-500.0,9.51e-05,2]
[347042418,1735482175132,-500.0,9.51e-05,2]
[347042419,1735482175155,-500.0,9.51e-05,2]
[347042420,1735482175178,-500.0,9.51e-05,2]
[347042421,1735482175201,-500.0,9.51e-05,2]
[347042422,1735482175223,-500.0,9.51e-05,2]
[347042423,1735482175245,-500.0,9.51e-05,2]
[347042424,1735482175270,-500.0,9.51e-05,2]
[347042425,1735482175293,-500.0,9.51e-05,2]
[347042426,1735482175316,-500.0,9.51e-05,2]
[347042427,1735482175338,-500.0,9.51e-05,2]
[347042428,1735482175363,-500.0,9.51e-05,2]
[347042429,1735482175385,-500.0,9.51e-05,2]
[347042430,1735482175410,-500.0,9.51e-05,2]
[347042431,1735482175433,-500.0,9.51e-05,2]
[347042432,1735482175456,-500.0,9.51e-05,2]
[347042433,1735482175481,-500.0,9.51e-05,2]
[347042434,1735482175505,-500.0,9.51e-05,2]
[347042435,1735482175528,-500.0,9.51e-05,2]
[347042436,1735482175551,-500.0,9.51e-05,2]
[347042437,1735482175574,-500.0,9.51e-05,2]
[347042438,1735482175598,-500.0,9.51e-05,2]
[347042439,1735482175621,-500.0,9.51e-05,2]
[347042440,1735482175643,-500.0,9.51e-05,2]
[347042441,1735482175665,-500.0,9.51e-05,2]
[347042442,1735482175688,-500.0,9.51e-05,2]
[347042443,1735482175711,-500.0,9.51e-05,2]
[347042444,1735482175733,-501.47448581,9.51e-05,2]
[347042445,1735482175832,-500.0,9.51e-05,2]
[347042446,1735482175856,-500.0,9.51e-05,2]
[347042447,1735482175880,-500.0,9.51e-05,2]
[347042448,1735482175903,-500.0,9.51e-05,2]
[347042449,1735482175926,-500.0,9.51e-05,2]
[347042450,1735482175949,-500.0,9.51e-05,2]
[347042451,1735482175972,-500.0,9.51e-05,2]
[347042452,1735482175995,-628.92,9.51e-05,2]
[347042453,1735482176018,-500.0,9.51e-05,2]
[347042454,1735482176040,-500.0,9.51e-05,2]
[347042455,1735482176063,-874.74,9.51e-05,2]
[347042456,1735482176086,-500.0,9.51e-05,2]
[347042457,1735482176114,-811.09,9.51e-05,2]
[347042458,1735482176136,-515.31405967,9.51e-05,2]
[347042459,1735482176159,-500.0,9.51e-05,2]
[347042460,1735482176181,-500.0,9.51e-05,2]
[347042461,1735482176206,-659.6,9.51e-05,2]
[347042462,1735482176229,-500.0,9.51e-05,2]
[347042463,1735482176254,-502.75648706,9.51e-05,2]
[347042464,1735482176277,-500.0,9.51e-05,2]
[347042465,1735482176300,-500.0,9.51e-05,2]
[347042466,1735482176323,-500.0,9.51e-05,2]
[347042467,1735482176346,-500.0,9.51e-05,2]
[347042468,1735482176369,-500.0,9.51e-05,2]
[347042469,1735482176393,-500.0,9.51e-05,2]
[347042470,1735482176417,-500.0,9.51e-05,2]
[347042471,1735482176440,-500.0,9.51e-05,2]
[347042472,1735482176463,-500.0,9.51e-05,2]
[347042473,1735482176487,-504.0408749,9.51e-05,2]
[347042474,1735482176509,-500.0,9.51e-05,2]
[347042475,1735482176531,-500.0,9.51e-05,2]
[347042476,1735482176554,-683.62,9.51e-05,2]
[347042477,1735482176577,-500.0,9.51e-05,2]
[347042478,1735482176598,-500.0,9.51e-05,2]
[347042479,1735482176620,-840.71,9.51e-05,2]
[347042480,1735482176642,-500.0,9.51e-05,2]
[347042481,1735482176663,-500.0,9.51e-05,2]
[347042482,1735482176685,-500.0,9.51e-05,2]
[347042483,1735482176708,-500.0,9.51e-05,2]
[347042484,1735482176731,-602.61,9.51e-05,2]
[347042485,1735482176752,-500.0,9.51e-05,2]
[347042486,1735482176780,-500.0,9.512e-05,2]
[347042487,1735482176803,-500.0,9.512e-05,2]
[347042488,1735482176826,-598.43560107,9.512e-05,2]
[347042489,1735482176851,-15637.64,9.512e-05,2]
[347042490,1735482176874,-605.72,9.512e-05,2]
[347042491,1735482176896,-500.0,9.512e-05,2]
[347042492,1735482176919,-500.0,9.512e-05,2]
[347042493,1735482176942,-500.0,9.512e-05,2]
[347042494,1735482176963,-500.0,9.513e-05,2]
[347042495,1735482176986,-500.0,9.514e-05,2]
[347042496,1735482177008,-500.0,9.514e-05,2]
[347042497,1735482177032,-500.0,9.514e-05,2]
[347042498,1735482177054,-500.0,9.514e-05,2]
[347042499,1735482177077,-506.40283484,9.514e-05,2]
[347042500,1735482177100,-500.0,9.514e-05,2]
[347042501,1735482177122,-503.04,9.514e-05,2]
[347042502,1735482177146,-500.0,9.514e-05,2]
[347042503,1735482177168,-500.0,9.514e-05,2]
[347042504,1735482177191,-500.0,9.514e-05,2]
[347042505,1735482177213,-500.0,9.514e-05,2]
[347042506,1735482177236,-500.0,9.514e-05,2]
[347042507,1735482177259,-500.0,9.514e-05,2]
[347042508,1735482177282,-500.0,9.514e-05,2]
[347042509,1735482177305,-500.0,9.514e-05,2]
[347042510,1735482177329,-501.43795238,9.514e-05,2]
[347042511,1735482177351,-525.14870825,9.514e-05,2]
[347042512,1735482177375,-288.86776285,9.514e-05,2]
[347042513,1735482177399,-500.0,9.514e-05,2]
[347042514,1735482177422,-500.0,9.514e-05,2]
[347042515,1735482177444,-566.47859215,9.514e-05,2]
[347042516,1735482177467,-500.0,9.514e-05,2]
[347042517,1735482177489,-500.0,9.514e-05,2]
[347042518,1735482177511,-500.0,9.514e-05,2]
[347042519,1735482177533,-568.68494844,9.514e-05,2]
[347042520,1735482177556,-500.0,9.514e-05,2]
[347042521,1735482177581,-500.0,9.514e-05,2]
[347042522,1735482177605,-500.0,9.514e-05,2]
[347042523,1735482177627,-500.0,9.514e-05,2]
[347042524,1735482177648,-506.94923834,9.514e-05,2]
[347042525,1735482177670,-500.0,9.514e-05,2]
[347042526,1735482177692,-500.0,9.514e-05,2]
[347042527,1735482177714,-554.6,9.514e-05,2]
[347042528,1735482177738,-500.0,9.514e-05,2]
[347042529,1735482177763,-500.0,9.514e-05,2]
[347042530,1735482177788,-503.1094697,9.514e-05,2]
[347042531,1735482177811,-500.0,9.514e-05,2]
[347042532,1735482177833,-500.0,9.514e-05,2]
[347042533,1735482177857,-500.0,9.514e-05,2]
[347042534,1735482177880,-500.0,9.514e-05,2]
[347042535,1735482177901,-500.0,9.514e-05,2]
[347042536,1735482177926,-500.0,9.514e-05,2]
[347042537,1735482177948,-224.40009952,9.514e-05,2]
[347042538,1735482178053,-500.0,9.514e-05,2]
[347042539,1735482178078,-500.0,9.514e-05,2]
[347042540,1735482178104,-500.0,9.514e-05,2]
[347042541,1735482178130,-500.0,9.514e-05,2]
[347042542,1735482178154,-500.0,9.514e-05,2]
[347042543,1735482178178,-503.09599382,9.514e-05,2]
[347042544,1735482178202,-500.0,9.514e-05,2]
[347042545,1735482178225,-500.0,9.514e-05,2]
[347042546,1735482178248,-500.0,9.514e-05,2]
[347042547,1735482178273,-500.0,9.514e-05,2]
[347042548,1735482178297,-502.93390904,9.514e-05,2]
[347042549,1735482178321,-500.0,9.514e-05,2]
[347042550,1735482178345,-483.10822788,9.514e-05,2]
[347042551,1735482178370,-500.0,9.514e-05,2]
[347042552,1735482178394,-500.0,9.514e-05,2]
[347042553,1735482178416,-500.0,9.514e-05,2]
[347042554,1735482178438,-221.00505656,9.514e-05,2]
[347042555,1735482178462,-500.0,9.514e-05,2]
[347042556,1735482178484,-500.0,9.514e-05,2]
[347042557,1735482178507,-500.0,9.514e-05,2]
[347042558,1735482178529,-530.00421298,9.514e-05,2]
[347042559,1735482178552,-502.11487003,9.514e-05,2]
[347042560,1735482178575,-500.0,9.514e-05,2]
[347042561,1735482178600,-500.0,9.514e-05,2]
[347042562,1735482178622,-503.60952583,9.514e-05,2]
[347042563,1735482178644,-623.52,9.514e-05,2]
[347042564,1735482178666,-500.0,9.514e-05,2]
[347042565,1735482178689,-500.0,9.514e-05,2]
[347042566,1735482178711,-553.85,9.514e-05,2]
[347042567,1735482178733,-500.0,9.514e-05,2]
[347042568,1735482178756,-575.17574467,9.514e-05,2]
[347042569,1735482178782,-500.0,9.514e-05,2]
[347042570,1735482178804,-500.0,9.514e-05,2]
[347042571,1735482178827,-500.0,9.514e-05,2]
[347042572,1735482178852,-500.0,9.514e-05,2]
[347042573,1735482178876,-500.0,9.514e-05,2]
[347042574,1735482178898,-500.0,9.514e-05,2]
[347042575,1735482178920,-500.0,9.514e-05,2]
[347042576,1735482178942,-500.0,9.514e-05,2]
[347042577,1735482178963,-500.58924651,9.514e-05,2]
[347042578,1735482178986,-500.0,9.514e-05,2]
[347042579,1735482179007,-500.0,9.514e-05,2]
[347042580,1735482179029,-500.0,9.514e-05,2]
[347042581,1735482179050,-503.70124032,9.514e-05,2]
[347042582,1735482179072,-500.0,9.514e-05,2]
[347042583,1735482179095,-500.0,9.514e-05,2]
[347042584,1735482179117,-500.0,9.514e-05,2]
[347042585,1735482179139,-502.53716987,9.514e-05,2]
[347042586,1735482179161,-501.41028101,9.514e-05,2]
[347042587,1735482179184,-506.67404025,9.514e-05,2]
[347042588,1735482179206,-500.0,9.514e-05,2]
[347042589,1735482179229,-500.0,9.514e-05,2]
[347042590,1735482179251,-531.7511274,9.514e-05,2]
[347042591,1735482179273,-500.0,9.514e-05,2]
[347042592,1735482179295,-500.0,9.514e-05,2]
[347042593,1735482179318,-503.80891113,9.514e-05,2]
[347042594,1735482179342,-512.93561079,9.514e-05,2]
[347042595,1735482179366,-642.62519808,9.514e-05,2]
[347042596,1735482179389,-502.71180506,9.514e-05,2]
[347042597,1735482179413,-503.10985476,9.514e-05,2]
[347042598,1735482179436,-500.0,9.514e-05,2]
[347042599,1735482179460,-500.88464733,9.514e-05,2]
[347042600,1735482179482,-500.0,9.514e-05,2]
[347042601,1735482179505,-500.0,9.514e-05,2]
[347042602,1735482179528,-501.82365361,9.514e-05,2]
[347042603,1735482179550,-499.40260275,9.514e-05,2]
[347042604,1735482179572,-323.75931422,9.514e-05,2]
[347042605,1735482179596,-2224.43,9.514e-05,2]
[347042606,1735482179619,-500.0,9.514e-05,2]
[347042607,1735482179640,-500.0,9.514e-05,2]
[347042608,1735482179663,-500.0,9.514e-05,2]
[347042609,1735482179685,-500.0,9.514e-05,2]
[347042610,1735482179707,-500.0,9.514e-05,2]
[347042611,1735482179728,-500.0,9.514e-05,2]
[347042612,1735482179751,-500.0,9.514e-05,2]
[347042613,1735482179776,-500.0,9.514e-05,2]
[347042614,1735482179799,-500.90371166,9.514e-05,2]
[347042615,1735482179822,-500.0,9.514e-05,2]
[347042616,1735482179845,-606.43,9.514e-05,2]
[347042617,1735482179869,-500.0,9.514e-05,2]
[347042618,1735482179893,-500.0,9.514e-05,2]
[347042619,1735482179916,-904.4,9.514e-05,2]
[347042620,1735482179938,-500.0,9.514e-05,2]
[347042621,1735482179960,-500.0,9.514e-05,2]
[347042622,1735482179982,-500.0,9.515e-05,2]
[347042623,1735482180004,-500.0,9.515e-05,2]